bitfinex-derivatives/quotes_SOLF0:USTF0_20241218
["timestamp","ask_amount","ask_price","bid_price","bid_amount"]
[1734526508921,52.84,216.45,216.16,19.26834169]
[1734526509119,11.27700091,216.39,216.25,11.27700091]
[1734526509423,2.2,216.38,216.25,11.27700091]
[1734526509719,2.3119,216.28,216.22,13.58940091]
[1734526509920,2.2,216.27,216.22,11.27700091]
[1734526510220,2.2,216.26,216.22,11.27700091]
[1734526510421,2.2,216.25,216.22,11.27700091]
[1734526510718,11.27700091,216.36,216.22,11.27700091]
[1734526510921,2.2,216.35,216.25,11.27700091]
[1734526511117,2.3114,216.33,216.26,2.312]
[1734526511421,2.2,216.32,216.22,11.27700091]
[1734526511718,11.27700091,216.39,216.25,11.27700091]
[1734526511922,2.2,216.38,216.25,11.27700091]
[1734526512117,11.27700091,216.39,216.25,11.27700091]
[1734526512319,2.2,216.38,216.28,11.27700091]
[1734526512614,2.2,216.37,216.31,11.27700091]
[1734526512817,2.2,216.38,216.34,2.3112]
[1734526513316,4.5108,216.38,216.32,2.3114]
[1734526513720,2.2,216.38,216.31,11.27700091]
[1734526513920,2.2,216.37,216.31,13.58860091]
[1734526514124,2.2,216.36,216.31,13.58860091]
[1734526514518,2.2,216.36,216.31,11.27700091]
[1734526514718,2.2,216.36,216.29,4.6319]
[1734526515925,2.2,216.36,216.2,5.64578613]
[1734526516121,2.2,216.36,216.23,11.27700091]
[1734526516523,2.3116,216.31,216.23,11.27700091]
[1734526516722,2.3116,216.31,216.22,4.4181]
[1734526516723,2.2,216.31,216.26,11.27700091]
[1734526516917,2.2,216.33,216.29,2.3118]
[1734526517420,2.2,216.33,216.26,11.27700091]
[1734526518022,4.5114,216.33,216.27,2.3119]
[1734526518419,2.2,216.33,216.26,11.27700091]
[1734526518617,2.2,216.35,216.29,11.27700091]
[1734526518819,2.2,216.36,216.3,1.5155]
[1734526519528,2.2,216.36,216.32,2.3114]
[1734526520523,4.511,216.36,216.31,2.3115]
[1734526521225,2.2,216.36,216.3,1.5155]
[1734526521828,2.3114,216.33,216.3,1.5155]
[1734526522025,2.2,216.36,216.3,1.5155]
[1734526522423,2.3114,216.33,216.3,1.5155]
[1734526523234,2.2,216.36,216.3,1.5155]
[1734526524035,11.27700091,216.34,216.22,1.4523]
[1734526524622,2.3118,216.3,216.25,2.3122]
[1734526524833,2.2,216.29,216.25,2.3122]
[1734526525334,2.2,216.29,216.22,1.4523]
[1734526525533,4.5119,216.29,216.24,2.3123]
[1734526525846,2.2,216.29,216.24,2.3123]
[1734526526037,2.2,216.29,216.22,1.4523]
[1734526526535,2.312,216.27,216.23,2.3124]
[1734526529038,2.2,216.29,216.16,11.27700091]
[1734526529234,2.2,216.29,216.17,3.0255]
[1734526529640,2.3124,216.24,216.19,2.3128]
[1734526529942,4.5124,216.24,216.19,2.3128]
[1734526530235,4.5124,216.24,216.21,2.3126]
[1734526531656,4.5124,216.24,216.2,2.3127]
[1734526533434,1.5925,216.36,216.18,6.96438132]
[1734526533435,2.3121,216.27,216.23,2.3124]
[1734526533635,11.27700091,216.34,216.22,11.27700091]
[1734526533636,2.2,216.29,216.22,11.27700091]
[1734526534841,11.27700091,216.37,216.25,11.27700091]
[1734526535045,2.2,216.36,216.26,1.4721]
[1734526535544,2.3113,216.34,216.28,2.3119]
[1734526535741,50.06098002,216.38,216.26,1.4721]
[1734526535742,2.2,216.33,216.26,1.4721]
[1734526535940,2.2,216.35,216.26,2.9258]
[1734526536141,4.5111,216.35,216.31,2.3116]
[1734526536351,4.5111,216.35,216.26,4.4148]
[1734526536847,4.5111,216.35,216.3,2.3116]
[1734526538048,2.2,216.35,216.28,2.3118]
[1734526538438,2.3114,216.33,216.29,2.3117]
[1734526538642,52.32098002,216.38,216.27,11.27700091]
[1734526538842,2.26,216.38,216.27,11.27700091]
[1734526539043,4.5708,216.39,216.34,2.3112]
[1734526539348,2.26,216.39,216.34,2.3112]
[1734526540244,2.26,216.39,216.3,11.27700091]
[1734526540443,2.3112,216.35,216.3,2.3116]
[1734526542241,2.3113,216.34,216.3,2.3116]
[1734526542948,2.26,216.39,216.29,2.3118]
[1734526543147,2.26,216.39,216.26,4.4148]
[1734526543650,2.26,216.39,216.3,2.3116]
[1734526543651,2.3112,216.35,216.3,2.3116]
[1734526545152,2.26,216.39,216.3,2.3116]
[1734526546248,2.3112,216.35,216.3,2.3116]
[1734526546651,2.26,216.39,216.26,15.69180091]
[1734526546847,2.3112,216.35,216.26,15.69180091]
[1734526547544,5.48709408,216.42,216.29,11.27700091]
[1734526547749,2.26,216.41,216.26,4.4148]
[1734526547949,2.26,216.41,216.28,11.27700091]
[1734526548151,11.27700091,216.34,216.13,13.78075613]
[1734526548452,2.26,216.33,216.19,11.27700091]
[1734526548846,2.3118,216.29,216.22,2.3125]
[1734526549045,2.26,216.28,216.22,2.3125]
[1734526550581,2.312,216.27,216.22,2.3125]
[1734526550783,2.26,216.28,216.19,11.27700091]
[1734526551481,11.27700091,216.34,216.19,11.27700091]
[1734526551678,2.3117,216.3,216.19,11.27700091]
[1734526551880,2.3117,216.3,216.22,11.27700091]
[1734526552181,2.3117,216.3,216.24,2.3122]
[1734526552582,2.3118,216.29,216.24,2.3122]
[1734526555782,2.26,216.33,216.21,11.27700091]
[1734526555986,5.48709408,216.42,216.24,11.27700091]
[1734526556284,11.27700091,216.4,216.25,3.0108]
[1734526556480,11.27700091,216.4,216.25,4.5542]
[1734526556697,2.3113,216.34,216.29,2.3117]
[1734526558763,2.26,216.36,216.27,11.27700091]
[1734526559383,2.26,216.38,216.32,2.3114]
[1734526560081,2.3111,216.36,216.32,2.3114]
[1734526560298,2.26,216.38,216.29,11.27700091]
[1734526560995,5.48709408,216.42,216.3,4.76591092]
[1734526561183,2.26,216.41,216.3,4.76591092]
[1734526561394,1.5344,216.47,216.35,11.27700091]
[1734526561588,2.26,216.45,216.35,11.27700091]
[1734526561889,2.3103,216.43,216.36,2.26]
[1734526562288,2.3103,216.43,216.39,2.3107]
[1734526562481,2.3102,216.44,216.39,2.3107]
[1734526562886,2.26,216.45,216.4,4.76396383]
[1734526563294,2.26,216.46,216.4,4.76396383]
[1734526563689,2.26,216.46,216.38,2.3108]
[1734526563888,2.26,216.46,216.39,4.76150697]
[1734526564356,2.26,216.46,216.35,2.311]
[1734526564479,2.3105,216.42,216.36,7.07140178]
[1734526564688,2.26,216.46,216.32,13.53700091]
[1734526564887,2.26,216.46,216.35,11.27700091]
[1734526565099,2.26,216.46,216.36,4.76025075]
[1734526565290,2.26,216.46,216.37,4.76025075]
[1734526565590,2.26,216.46,216.38,4.76025075]
[1734526565983,2.26,216.46,216.39,4.76025075]
[1734526566385,2.26,216.46,216.35,11.27700091]
[1734526566592,2.26,216.46,216.36,4.75671046]
[1734526566787,2.26,216.46,216.35,11.27700091]
[1734526566788,2.26,216.46,216.37,4.75671046]
[1734526567093,11.27700091,216.44,216.34,3.0059]
[1734526567296,2.26,216.46,216.34,3.0059]
[1734526567592,2.26,216.46,216.35,4.75657743]
[1734526567892,2.26,216.46,216.36,4.75657743]
[1734526568090,2.26,216.46,216.37,4.75657743]
[1734526568311,2.26,216.46,216.34,3.0059]
[1734526568591,2.3104,216.42,216.37,2.3108]
[1734526568989,2.26,216.46,216.34,1.5497]
[1734526569232,2.3106,216.41,216.32,13.58840091]
[1734526569496,11.27700091,216.44,216.33,4.75510421]
[1734526569497,2.26,216.4,216.33,4.75510421]
[1734526569791,11.27700091,216.44,216.34,4.75510421]
[1734526569792,2.26,216.41,216.34,4.75510421]
[1734526569994,2.3109,216.38,216.33,2.3113]
[1734526570190,2.26,216.41,216.32,11.27700091]
[1734526570494,2.26,216.41,216.33,4.75494126]
[1734526570696,2.311,216.37,216.32,2.3114]
[1734526571197,2.311,216.37,216.33,4.75495231]
[1734526571393,2.3112,216.35,216.33,4.75495231]
[1734526571597,13.53700091,216.41,216.29,2.3117]
[1734526571827,2.26,216.4,216.29,2.3117]
[1734526572069,2.26,216.4,216.3,4.75537211]
[1734526572304,2.3112,216.35,216.31,4.75537211]
[1734526572631,2.26,216.4,216.27,10.10218906]
[1734526572891,2.26,216.4,216.28,4.75584237]
[1734526573092,2.26,216.4,216.29,4.75584237]
[1734526573292,2.3111,216.36,216.31,2.3115]
[1734526573513,2.3111,216.36,216.32,4.75584237]
[1734526573691,2.3111,216.36,216.31,2.3115]
[1734526574197,2.3111,216.36,216.32,4.75726212]
[1734526574399,2.3111,216.36,216.31,9.53619707]
[1734526574693,2.3109,216.37,216.32,2.3114]
[1734526574891,2.26,216.4,216.33,7.22469707]
[1734526575090,2.26,216.4,216.35,7.22469707]
[1734526575892,2.26,216.4,216.33,7.22469707]
[1734526576095,2.26,216.4,216.29,11.28790497]
[1734526576289,2.3111,216.36,216.31,2.3116]
[1734526576487,2.3111,216.36,216.32,4.75981956]
[1734526576684,2.3111,216.36,216.33,4.75981956]
[1734526576883,2.3112,216.35,216.29,11.28790497]
[1734526577182,2.26,216.4,216.3,4.75982844]
[1734526577381,2.3113,216.34,216.31,4.75982844]
[1734526577675,2.3113,216.34,216.32,4.75982844]
[1734526578068,2.3113,216.34,216.33,4.75982844]
[1734526579162,2.3111,216.35,216.33,4.75982844]
[1734526579464,2.26,216.4,216.29,11.28790497]
[1734526579866,2.311,216.37,216.3,4.7635076]
[1734526580168,2.311,216.37,216.31,4.7635076]
[1734526580369,2.311,216.37,216.33,2.3113]
[1734526580570,2.3111,216.35,216.34,4.7635076]
[1734526581069,2.3111,216.35,216.3,2.3117]
[1734526581070,2.26,216.4,216.3,2.3117]
[1734526581269,2.26,216.4,216.31,4.76388496]
[1734526581474,2.3113,216.34,216.32,4.76388496]
[1734526581774,2.3113,216.34,216.33,4.76388496]
[1734526582769,2.3113,216.34,216.27,4.5084]
[1734526582770,2.3115,216.32,216.27,3.0271]
[1734526582969,2.3115,216.32,216.28,4.76414961]
[1734526583373,2.26,216.35,216.29,4.76414961]
[1734526583572,2.3114,216.33,216.3,7.07584961]
[1734526583972,2.3114,216.33,216.3,2.3117]
[1734526584170,2.3114,216.33,216.31,4.76444332]
[1734526584372,2.3114,216.33,216.32,4.76444332]
[1734526584768,2.3114,216.33,216.3,2.3117]
[1734526585167,2.3114,216.33,216.31,4.76425486]
[1734526585570,2.3114,216.33,216.3,2.3117]
[1734526586073,2.3114,216.33,216.31,4.76432317]
[1734526586373,2.3114,216.33,216.32,4.76432317]
[1734526587477,2.3113,216.34,216.32,4.76432317]
[1734526587776,2.3113,216.34,216.3,2.3117]
[1734526588073,2.3113,216.34,216.31,4.76433448]
[1734526588278,2.3113,216.33,216.32,4.76433448]
[1734526588774,2.26,216.35,216.26,11.28790497]
[1734526588978,2.3117,216.3,216.27,2.3119]
[1734526589179,2.3117,216.3,216.27,7.07649882]
[1734526589374,2.3117,216.3,216.28,4.76459882]
[1734526589574,2.3117,216.3,216.27,2.3119]
[1734526589575,2.3117,216.3,216.29,4.76459882]
[1734526590580,4.5717,216.3,216.29,4.76459882]
[1734526590771,2.26,216.3,216.24,0.46476]
[1734526590974,2.3118,216.29,216.25,4.7647149]
[1734526591178,2.3118,216.29,216.26,4.7647149]
[1734526591573,2.3118,216.29,216.27,4.7647149]
[1734526591978,2.3116,216.31,216.24,11.75266497]
[1734526592175,2.3116,216.31,216.28,4.76392423]
[1734526592377,2.3116,216.31,216.29,4.76392423]
[1734526592576,2.3116,216.31,216.26,2.3121]
[1734526592777,2.3116,216.31,216.27,4.76357871]
[1734526593075,2.3117,216.3,216.28,4.76357871]
[1734526593279,2.3117,216.3,216.29,4.76357871]
[1734526593479,2.3117,216.3,216.26,2.3121]
[1734526593676,2.3117,216.3,216.27,4.76336668]
[1734526593873,2.3117,216.3,216.26,2.3121]
[1734526593874,2.3117,216.3,216.28,4.76336668]
[1734526594077,2.3117,216.3,216.26,2.3121]
[1734526594378,13.85,216.46,216.27,16.05169853]
[1734526594580,2.3113,216.34,216.29,2.3117]
[1734526594781,2.26,216.39,216.29,2.3117]
[1734526594982,2.26,216.39,216.3,4.76379356]
[1734526595278,2.26,216.39,216.27,11.28790497]
[1734526595279,2.3115,216.32,216.28,2.3119]
[1734526595883,2.3115,216.32,216.29,4.76416862]
[1734526596379,2.3115,216.32,216.28,2.3119]
[1734526596380,7.22551882,216.37,216.3,11.98968744]
[1734526596581,2.26,216.38,216.32,7.22551882]
[1734526597584,2.311,216.37,216.33,2.3113]
[1734526597777,2.26,216.38,216.32,7.22551882]
[1734526598179,2.26,216.38,216.34,7.22551882]
[1734526598484,9.48551882,216.42,216.35,4.76535312]
[1734526598678,2.26,216.41,216.34,7.22551882]
[1734526600180,2.3107,216.39,216.36,4.76667526]
[1734526600482,2.3107,216.39,216.37,4.76667526]
[1734526600679,2.3107,216.39,216.35,2.311]
[1734526600882,2.3107,216.39,216.36,4.76665778]
[1734526601079,2.3107,216.39,216.37,4.76665778]
[1734526601274,2.3107,216.39,216.35,2.311]
[1734526601581,2.3107,216.39,216.36,4.76675905]
[1734526601977,2.3107,216.39,216.37,4.76675905]
[1734526602476,2.26,216.43,216.38,11.99216785]
[1734526602676,2.26,216.44,216.39,4.76664903]
[1734526602873,2.3105,216.42,216.38,7.22551882]
[1734526603073,2.3105,216.42,216.37,2.3109]
[1734526603284,2.3105,216.42,216.38,4.76626791]
[1734526603582,2.3105,216.42,216.39,4.76626791]
[1734526603783,2.3106,216.41,216.36,9.53651882]
[1734526604083,2.3106,216.41,216.37,4.76629652]
[1734526604283,2.3106,216.41,216.38,4.76629652]
[1734526604479,2.3106,216.41,216.39,4.76629652]
[1734526604783,2.3106,216.41,216.36,9.53651882]
[1734526604983,2.3106,216.41,216.37,4.7659342]
[1734526605183,2.26,216.44,216.38,2.3108]
[1734526605384,2.26,216.44,216.38,7.0767342]
[1734526605578,2.26,216.44,216.39,4.7659342]
[1734526605777,2.26,216.44,216.38,2.3108]
[1734526605980,2.3104,216.43,216.38,2.3108]
[1734526606181,2.3104,216.43,216.39,4.76530697]
[1734526606378,2.3105,216.41,216.37,7.22551882]
[1734526606582,2.3105,216.41,216.38,4.76530867]
[1734526606782,2.3105,216.41,216.39,4.76530867]
[1734526606986,2.3105,216.41,216.37,7.22551882]
[1734526607384,2.3106,216.4,216.37,7.22551882]
[1734526607687,2.3106,216.4,216.38,4.76530885]
[1734526607889,2.3106,216.4,216.36,2.3109]
[1734526608085,2.3106,216.4,216.37,4.76602177]
[1734526608286,2.3106,216.4,216.38,4.76602177]
[1734526608589,2.3106,216.4,216.39,4.76602177]
[1734526609687,2.3109,216.38,216.33,7.22551882]
[1734526609881,2.3109,216.38,216.34,4.76656385]
[1734526610084,2.3109,216.38,216.35,4.76656385]
[1734526610486,2.3109,216.38,216.34,2.3112]
[1734526610487,2.3109,216.37,216.36,4.76656385]
[1734526610678,7.22551882,216.41,216.36,4.76656385]
[1734526610879,7.22551882,216.41,216.35,2.3111]
[1734526611383,7.22551882,216.41,216.36,4.76853934]
[1734526611581,7.22551882,216.41,216.35,2.3111]
[1734526611784,2.3108,216.39,216.36,4.76853934]
[1734526612089,2.3108,216.39,216.35,9.53661882]
[1734526612490,2.3108,216.39,216.36,4.76862869]
[1734526612691,2.3108,216.39,216.35,9.53661882]
[1734526612888,2.26,216.41,216.35,2.3111]
[1734526613093,2.26,216.41,216.36,4.76868855]
[1734526613395,2.26,216.41,216.36,9.53651882]
[1734526613691,2.3106,216.4,216.37,4.76911191]
[1734526614094,2.3106,216.4,216.36,9.53651882]
[1734526614584,4.5705,216.41,216.37,7.07994802]
[1734526614788,4.5705,216.41,216.38,4.76904802]
[1734526614989,7.22551882,216.44,216.38,7.22551882]
[1734526615191,2.3104,216.42,216.38,9.53621882]
[1734526615589,1.4699,216.48,216.38,7.22551882]
[1734526615787,2.3103,216.44,216.4,2.3106]
[1734526615994,2.26,216.47,216.4,7.22551882]
[1734526616594,2.26,216.47,216.41,4.76747714]
[1734526616889,7.22551882,216.48,216.42,4.76747714]
[1734526617194,11.79531882,216.48,216.44,2.3102]
[1734526617391,2.26,216.48,216.42,7.22551882]
[1734526617688,50.03088434,216.5,216.44,7.22551882]
[1734526617894,2.26,216.5,216.44,7.22551882]
[1734526618895,2.3097,216.49,216.44,9.53561882]
[1734526619488,2.26,216.5,216.44,9.53561882]
[1734526619689,2.3098,216.48,216.44,9.53561882]
[1734526619993,2.26,216.5,216.45,4.76441475]
[1734526619994,7.22551882,216.49,216.45,4.76441475]
[1734526620193,2.31,216.46,216.38,1.4943]
[1734526620393,7.22551882,216.47,216.4,7.22551882]
[1734526620587,2.3103,216.46,216.41,7.07488462]
[1734526620793,2.3103,216.46,216.42,4.76428462]
[1734526620997,7.22551882,216.47,216.39,9.53641882]
[1734526621192,2.3105,216.43,216.38,1.4943]
[1734526621492,7.22551882,216.41,216.4,4.76437406]
[1734526621795,7.22551882,216.41,216.34,9.53691882]
[1734526621988,7.22551882,216.41,216.35,4.76513031]
[1734526622395,2.3111,216.38,216.36,4.76513031]
[1734526622893,2.3111,216.38,216.34,7.22551882]
[1734526623091,2.3111,216.38,216.35,4.76521207]
[1734526623289,2.3111,216.38,216.36,4.76521207]
[1734526623496,2.3111,216.38,216.34,9.53701882]
[1734526623698,2.3111,216.38,216.35,4.76519383]
[1734526623991,2.3111,216.38,216.36,4.76519383]
[1734526624398,2.3111,216.38,216.34,9.53701882]
[1734526624699,2.3111,216.38,216.35,4.76516556]
[1734526624896,2.3111,216.38,216.36,4.76516556]
[1734526625195,2.3111,216.38,216.34,9.53701882]
[1734526625597,2.26,216.4,216.35,4.76515923]
[1734526625896,7.22551882,216.39,216.31,1.6121]
[1734526626291,7.22551882,216.37,216.31,1.6121]
[1734526626998,7.22551882,216.37,216.32,4.76541482]
[1734526627296,7.22551882,216.37,216.33,4.76541482]
[1734526627498,7.22551882,216.37,216.31,1.6121]
[1734526627499,2.3115,216.34,216.31,1.6121]
[1734526627998,2.3115,216.34,216.32,4.76536306]
[1734526628198,2.3115,216.34,216.33,4.76536306]
[1734526628696,2.3115,216.34,216.31,1.6121]
[1734526629002,2.3115,216.34,216.32,4.76558065]
[1734526629198,2.3115,216.34,216.31,1.6121]
[1734526629402,2.3115,216.34,216.32,4.76580933]
[1734526629597,2.3115,216.34,216.31,1.6121]
[1734526630099,2.3115,216.34,216.32,4.76578275]
[1734526630295,7.22551882,216.37,216.3,0.30148]
[1734526630699,2.26,216.4,216.3,7.52699882]
[1734526630914,2.26,216.4,216.32,7.22551882]
[1734526631200,7.22551882,216.39,216.32,7.22551882]
[1734526632103,2.3114,216.35,216.32,7.22551882]
[1734526632605,2.3112,216.37,216.33,4.76551273]
[1734526632808,2.3112,216.37,216.32,7.22551882]
[1734526633001,9.48551882,216.4,216.32,7.22551882]
[1734526633304,2.3112,216.37,216.34,7.22551882]
[1734526635101,2.3113,216.36,216.32,7.22551882]
[1734526635307,2.3113,216.36,216.33,4.76622099]
[1734526635498,7.22551882,216.38,216.33,4.76622099]
[1734526635694,7.22551882,216.38,216.31,1.4774]
[1734526635893,2.3115,216.35,216.32,4.7664875]
[1734526636097,7.22551882,216.38,216.31,1.4774]
[1734526636302,7.22551882,216.38,216.3,7.22551882]
[1734526636500,2.3116,216.34,216.3,7.22551882]
[1734526636804,2.3116,216.34,216.31,4.76752328]
[1734526637303,2.3116,216.34,216.32,4.76752328]
[1734526637503,2.3116,216.34,216.3,7.22551882]
[1734526637905,2.3116,216.33,216.31,4.76822691]
[1734526638208,7.22551882,216.38,216.32,4.76822691]
[1734526638400,2.3115,216.35,216.3,9.53741882]
[1734526638601,7.22551882,216.38,216.31,4.76896642]
[1734526638809,7.22551882,216.38,216.32,4.76896642]
[1734526639196,7.22551882,216.38,216.3,9.53741882]
[1734526639404,2.3115,216.34,216.31,4.76968314]
[1734526639606,2.3115,216.34,216.32,4.76968314]
[1734526639806,2.3115,216.34,216.3,9.53741882]
[1734526640003,2.3115,216.34,216.31,4.76970453]
[1734526640201,2.3115,216.34,216.32,4.76970453]
[1734526640401,2.3115,216.34,216.3,9.53741882]
[1734526641001,2.3113,216.36,216.32,9.53721882]
[1734526641306,5.45417297,216.4,216.34,7.22551882]
[1734526641501,2.2,216.39,216.34,7.22551882]
[1734526641702,2.2,216.39,216.35,4.76989931]
[1734526641909,7.22551882,216.43,216.36,11.99541813]
[1734526642108,7.22551882,216.45,216.38,7.22551882]
[1734526642310,2.2,216.44,216.38,7.22551882]
[1734526642904,2.3108,216.4,216.38,7.22551882]
[1734526643402,2.3108,216.4,216.39,4.76949352]
[1734526644009,2.3108,216.4,216.35,9.53691882]
[1734526644906,2.3108,216.4,216.37,7.22551882]
[1734526645906,2.3106,216.42,216.39,7.22551882]
[1734526646104,2.2,216.47,216.41,7.22551882]
[1734526646302,2.2,216.47,216.43,7.22551882]
[1734526646605,2.3102,216.46,216.43,7.22551882]
[1734526647106,2.31,216.48,216.39,1.4734]
[1734526647304,2.2,216.51,216.45,7.22551882]
[1734526647511,15.01169499,216.52,216.45,7.22551882]
[1734526647710,2.3098,216.5,216.46,4.76620342]
[1734526648210,2.2,216.54,216.47,9.53551882]
[1734526648410,2.2,216.54,216.49,7.22551882]
[1734526649108,2.3094,216.53,216.49,7.22551882]
[1734526649615,5.42027762,216.58,216.51,7.22551882]
[1734526649810,3.028,216.63,216.53,7.22551882]
[1734526650109,4.5088,216.6,216.54,2.3093]
[1734526650307,2.2,216.6,216.54,2.3093]
[1734526650711,4.5088,216.6,216.55,7.22551882]
[1734526650911,4.5088,216.6,216.55,9.53471882]
[1734526651214,4.5088,216.6,216.55,7.22551882]
[1734526652012,2.2,216.6,216.57,7.22551882]
[1734526652214,2.3086,216.62,216.57,7.22551882]
[1734526652409,7.22551882,216.65,216.57,7.22551882]
[1734526652712,2.2,216.64,216.59,7.22551882]
[1734526652914,2.3083,216.64,216.59,7.22551882]
[1734526653408,2.2,216.65,216.59,9.53431882]
[1734526653614,2.3082,216.65,216.61,7.22551882]
[1734526653812,2.2,216.66,216.61,7.22551882]
[1734526654018,2.3081,216.66,216.61,7.22551882]
[1734526654509,9.53361882,216.66,216.59,7.22551882]
[1734526654816,2.3081,216.66,216.61,7.22551882]
[1734526655114,3.0712,216.75,216.63,7.22551882]
[1734526655311,7.22551882,216.71,216.65,7.22551882]
[1734526655711,2.3076,216.71,216.67,7.22551882]
[1734526656008,2.3076,216.71,216.64,2.3083]
[1734526656204,2.3076,216.71,216.63,11.2528388]
[1734526656205,2.3074,216.72,216.63,11.2528388]
[1734526656506,2.3074,216.72,216.64,1.5854]
[1734526656707,2.3074,216.72,216.64,3.1931]
[1734526657017,2.3074,216.72,216.66,11.2528388]
[1734526657309,2.2,216.74,216.66,11.2528388]
[1734526657515,2.2,216.74,216.66,13.4528388]
[1734526657816,2.2,216.74,216.69,2.3077]
[1734526660112,2.3071,216.75,216.69,2.3077]
[1734526660313,2.2,216.77,216.66,13.4528388]
[1734526660615,2.2,216.77,216.69,11.2528388]
[1734526661216,11.7032088,216.82,216.69,13.5605388]
[1734526661409,2.2,216.79,216.69,11.2528388]
[1734526662016,2.2,216.79,216.72,2.3074]
[1734526662213,5.59284578,216.8,216.72,11.2528388]
[1734526662415,2.2,216.81,216.72,11.2528388]
[1734526662610,2.2,216.81,216.77,2.3069]
[1734526662823,2.2,216.81,216.73,1.5767]
[1734526662824,2.2,216.81,216.75,11.2528388]
[1734526663119,0.45037,216.82,216.8,2.3066]
[1734526663416,0.45037,216.82,216.78,11.2528388]
[1734526663621,0.45037,216.82,216.81,2.3065]
[1734526663913,2.3057,216.88,216.81,11.2528388]
[1734526664114,2.2,216.89,216.81,11.2528388]
[1734526664308,2.306,216.86,216.81,11.2528388]
[1734526664709,2.2,216.89,216.81,11.2528388]
[1734526665017,2.3058,216.87,216.82,2.3064]
[1734526665714,2.2,216.89,216.78,11.2528388]
[1734526666118,2.3062,216.84,216.79,2.3066]
[1734526667313,2.2,216.84,216.74,3.1068]
[1734526667821,2.3068,216.78,216.74,3.1068]
[1734526670217,2.2,216.84,216.74,1.5863]
[1734526670424,2.2,216.84,216.71,2.3074]
[1734526670721,11.2528388,216.82,216.71,2.3074]
[1734526671223,2.3069,216.77,216.72,2.3074]
[1734526671425,2.2,216.78,216.69,13.4528388]
[1734526671719,2.2,216.78,216.68,2.2]
[1734526672024,2.2,216.78,216.69,11.2528388]
[1734526672325,2.3072,216.75,216.69,13.5605388]
[1734526672526,2.2,216.78,216.69,13.5605388]
[1734526672825,2.3072,216.74,216.69,13.5605388]
[1734526673016,2.3072,216.74,216.68,2.2]
[1734526673017,2.2,216.78,216.64,4.6436]
[1734526673222,2.3075,216.71,216.67,2.3079]
[1734526673419,2.2,216.78,216.66,11.2528388]
[1734526673716,2.2,216.78,216.69,2.3077]
[1734526674519,2.2,216.78,216.66,11.2528388]
[1734526674723,2.3073,216.73,216.68,2.3078]
[1734526675821,2.3076,216.71,216.66,2.308]
[1734526676019,11.2528388,216.79,216.64,4.6436]
[1734526676020,2.2,216.73,216.64,4.6436]
[1734526676530,2.3076,216.71,216.65,2.3081]
[1734526676928,2.3076,216.7,216.65,2.3081]
[1734526677223,2.2,216.73,216.66,2.308]
[1734526677428,2.2,216.73,216.64,4.6436]
[1734526677629,4.5074,216.73,216.64,4.6436]
[1734526677829,2.2,216.73,216.64,4.6436]
[1734526678126,2.3076,216.71,216.64,4.6436]
[1734526678532,2.2,216.73,216.66,2.3081]
[1734526678734,2.2,216.73,216.64,3.0323]
[1734526679031,13.4528388,216.73,216.63,2.3084]
[1734526679930,2.308,216.67,216.63,2.3084]
[1734526680332,2.308,216.67,216.62,2.3085]
[1734526680728,2.308,216.67,216.58,2.2]
[1734526680729,2.2,216.68,216.57,11.2528388]
[1734526681134,2.3084,216.64,216.57,11.2528388]
[1734526681333,2.2,216.68,216.57,11.2528388]
[1734526681535,2.2,216.68,216.6,11.2528388]
[1734526681732,2.2,216.68,216.63,11.2528388]
[1734526682227,2.2,216.68,216.65,2.3082]
[1734526682433,16.67961774,216.76,216.63,11.2528388]
[1734526682434,2.2,216.71,216.63,11.2528388]
[1734526682828,2.3078,216.69,216.64,2.3083]
[1734526683831,4.5076,216.71,216.65,2.3081]
[1734526684230,16.67961774,216.76,216.63,11.2528388]
[1734526684436,2.2,216.75,216.66,11.2528388]